Cogmind - Beta 9.3 @@@ ROGUE MODE // 2019.12.22 @ 17:43:10 // Winter2019/RPGLIKE Player: K.Ioz Result: Destroyed by G-34 Mercenary with Small Laser Performance ------------- Evolutions (1) 500 Regions Visited (2) 400 Robots Destroyed (17) 85 Value Destroyed (460) 460 Prototype IDs (2) 40 Alien Tech Used (0) 0 Bonus (0) 0 TOTAL SCORE: 1485 Bonus ------- None Cogmind --------- Core Integrity 0/600 Matter 243/300 Energy 159/250 System Corruption 0% Temperature Cool (93) Movement Walking (120) Location -9/Materials Parts ------- > --- POWER (1) -------- Ion Engine > --- PROPULSION (2) --- Aluminum Leg Aluminum Leg > --- UTILITY (2) ------ Visual Processing Unit Improved ECM Suite > --- WEAPON (2) ------- Medium Laser Light Assault Rifle > --- INVENTORY (1) ---- Protomatter-43 Peak State ------------ > --- POWER ------------ Ion Engine > --- PROPULSION ------- Aluminum Leg Aluminum Leg > --- UTILITY ---------- Visual Processing Unit Improved ECM Suite > --- WEAPON ----------- Medium Laser Light Assault Rifle > --- INVENTORY -------- Protomatter [Rating: 10] Favorites ----------- Power Ion Engine Engine Ion Engine Propulsion Aluminum Leg Leg Aluminum Leg Utility Visual Processing Unit Device Improved ECM Suite Storage Large Matter Pod Processor Visual Processing Unit Weapon Light Assault Rifle Energy Gun Medium Laser Ballistic Gun Light Assault Rifle Build | -11 -10 -9 ------- Run | Scr Mat Mat Slots Evolved 3 | 2 . 1 Power . | . . . Propulsion 1 | 1 . . Utility 1 | . . 1 Weapon 1 | 1 . . Parts Attached 13 | 5 6 2 Power 1 | 1 . . Engine 1 | 1 . . Core . | . . . Reactor . | . . . Propulsion 2 | 2 . . Treads . | . . . Leg 2 | 2 . . Wheel . | . . . Hover . | . . . Flight . | . . . Utility 5 | . 3 2 Device 3 | . 1 2 Storage 1 | . 1 . Processor 1 | . 1 . Hackware . | . . . Protection . | . . . Artifact . | . . . Weapon 5 | 2 3 . Energy Gun 3 | 1 2 . Energy Cannon . | . . . Ballistic Gun 2 | 1 1 . Ballistic Cannon . | . . . Launcher . | . . . Special Weapon . | . . . Impact Weapon . | . . . Slashing Weapon . | . . . Piercing Weapon . | . . . Special Melee Weapon . | . . . Unidentified Prototypes . | . . . Parts Lost . | . . . Power . | . . . Propulsion . | . . . Utility . | . . . Weapon . | . . . Highest Loss Streak . | . . . Average Slot Usage (%) 98 | . 97 99 Engine 15 | . 16 14 Leg 31 | . 33 28 Device 9 | . 6 13 Processor 9 | . 6 14 Energy Gun 15 | . 16 14 Ballistic Gun 15 | . 16 14 Naked Turns . | . . . Heaviest Build 11 | 7 11 10 Greatest Support 20 | 20 20 20 Greatest Overweight (x) 2 | 1 2 . Average Overweight (x) . | . . . Largest Inventory Capacity 1 | 1 1 1 Average Capacity . | . 1 1 Most Carried 1 | 1 1 1 Average Carried . | . . . Final Capacity 1 | 1 1 1 Final Carried 1 | 1 1 1 Class Distribution -------------------- 100% | Mutant Dominant Class ---------------- Mutant | -10/Materials Mutant | -9/Materials Resources | -11 -10 -9 ----------- Run | Scr Mat Mat Matter Collected 369 | 230 128 11 Remotely 37 | . 37 . Salvage Created 318 | . 260 58 Parts 36 | . 30 6 Haulers Intercepted . | . . . Recyclers Shooed 1 | . 1 . Parts Field Recycled . | . . . Retrieved Matter . | . . . Parts Self-Destructed . | . . . Prevented . | . . . Kills | -11 -10 -9 ------- Run | Scr Mat Mat Combat Hostiles Destroyed 12 | . 9 3 Guns 12 | . 9 3 Classes Destroyed 4 | . 4 . Worker 2 | . 1 1 Watcher 3 | . 3 . Swarmer 1 | . 1 . Grunt 11 | . 8 3 Best Kill Streak 3 | . 3 2 Combat Bots Only 3 | . 3 1 Max Kills in Single Turn 1 | . 1 1 Gunslinging . | . . . Exploded . | . . . Melee . | . . . Uniques/NPCs Destroyed . | . . . Combat | -11 -10 -9 -------- Run | Scr Mat Mat Damage Taken 860 | . 724 136 Core 702 | . 592 110 Absorbed by Shields . | . . . Redirected to Core 505 | . 430 75 Core Remaining (%) 50 | 100 1 . Volleys Fired 86 | . 56 30 Largest 2 | . 2 2 Hottest 70 | . 70 70 Shots Fired 159 | . 112 47 Gun 159 | . 112 47 Cannon . | . . . Launcher . | . . . Special . | . . . Kinetic 86 | . 56 30 Thermal 73 | . 56 17 Explosive . | . . . Electromagnetic . | . . . Robot Hit Streak 9 | . 9 9 Robot Miss Streak 5 | . 5 2 Penetration Max . | . . . Secondary Targets 1 | . 1 . Max Gunslinging Chain 1 | . 1 . Shots Hit Robots 107 | . 70 37 Core Hits 36 | . 27 9 Critical Hits . | . . . Critical Kills . | . . . Critical Parts Destroyed . | . . . Melee Attacks . | . . . Impact . | . . . Slashing . | . . . Piercing . | . . . Sneak Attacks . | . . . Combat Hostiles . | . . . Follow-up Attacks . | . . . Damage Inflicted 1075 | . 751 324 Guns 1068 | . 744 324 Cannons . | . . . Explosions . | . . . Melee . | . . . Ramming 7 | . 7 . Kinetic 435 | . 272 163 Thermal 633 | . 472 161 Explosive . | . . . Electromagnetic . | . . . Impact . | . . . Slashing . | . . . Piercing . | . . . Highest Corruption . | . . . Average Corruption . | . . . Corruption Purged . | . . . Overload Shots . | . . . Overflow Damage . | . . . Projectiles . | . . . Explosions . | . . . Melee . | . . . Knockbacks . | . . . Impact . | . . . Kinetic . | . . . Secondary . | . . . Self-Inflicted Damage 1 | . 1 . Shots . | . . . Rammed 3 | . 3 . Targets Rammed 4 | . 4 . Kicked 1 | . 1 . Crushed . | . . . Highest Temperature 275 | . 275 87 Average Temperature 96 | . 110 42 Received Heat Transfer 477 | . 405 72 Effects 1 | . 1 . Energy Bleed 1 | . 1 . Siege Activations . | . . . Robots Corrupted . | . . . Combat Hostiles . | . . . Parts Fried . | . . . Impact Corruptions . | . . . Robots Melted . | . . . Combat Hostiles . | . . . Parts Melted 1 | . 1 . Heat Transferred 1851 | . 1370 481 Parts Sabotaged . | . . . Parts Stolen . | . . . Parts Stripped . | . . . Power Chain Reactions . | . . . Missiles Intercepted . | . . . Alert | -11 -10 -9 ------- Run | Scr Mat Mat Peak Influence 217 | . 217 52 Average Influence 42 | . 51 33 Maximum Alert Level 1 | . 1 . Low Security (%) 98 | 100 96 100 Level 1 1 | . 3 . Level 2 . | . . . Level 3 . | . . . Level 4 . | . . . Level 5 . | . . . High Security . | . . . Max Security . | . . . Squads Dispatched 5 | . 4 1 Investigation 4 | . 3 1 Extermination . | . . . Reinforcement 1 | . 1 . Assault . | . . . Garrison . | . . . Intercept . | . . . Construction Impeded . | . . . Haulers Reinforced . | . . . Stealth | -11 -10 -9 --------- Run | Scr Mat Mat Distress Signals . | . . . Communications Jammed . | . . . Distress Signals . | . . . Times Spotted 42 | . 22 20 Peak Tracking Total 4 | . 4 4 Tactical Retreats 12 | . 5 7 Traps | -11 -10 -9 ------- Run | Scr Mat Mat Traps Triggered . | . . . Indirectly . | . . . Trap Hack Attempts . | . . . Triggered . | . . . Disarmed 3 | . 3 . Reprogrammed . | . . . Reused . | . . . Traps Extracted . | . . . Installed . | . . . Triggered . | . . . Machines | -11 -10 -9 ---------- Run | Scr Mat Mat Machines Disabled . | . . . Max in Single Turn . | . . . Machines Sabotaged . | . . . Garrisons Compromised . | . . . Overloaded Fab Kills . | . . . Fab Network Shutdowns . | . . . Hacking | -11 -10 -9 --------- Run | Scr Mat Mat Machines Accessed 8 | . 7 1 Terminals 6 | . 5 1 Fabricators . | . . . Repair Stations . | . . . Recycling Units 2 | . 2 . Scanalyzers . | . . . Garrison Access . | . . . Total Hacks 19 | . 17 2 Successful 11 | . 10 1 Failed 8 | . 7 1 Catastrophic 1 | . 1 . Database Lockouts . | . . . Manual 2 | . . 2 Terminals 17 | . 15 2 Fabricators . | . . . Repair Stations . | . . . Recycling Units 2 | . 2 . Scanalyzers . | . . . Garrison Access . | . . . Terminal Hacks 9 | . 8 1 Prototype ID Bank 1 | . 1 . Alert Level 2 | . 2 . Locate Traps 3 | . 2 1 Disarm Traps 1 | . 1 . Surveillance Status 1 | . 1 . Reinforcement Status 1 | . 1 . Fabricator Hacks . | . . . Repair Station Hacks . | . . . Recycling Unit Hacks 2 | . 2 . Process 2 | . 2 . Scanalyzer . | . . . Garrison Access Hacks . | . . . Unauthorized Hacks . | . . . Terminals . | . . . Fabricators . | . . . Repair Stations . | . . . Recycling Units . | . . . Scanalyzers . | . . . Garrison Access . | . . . Data Cores Recovered . | . . . Used . | . . . Hacking Detections 6 | . 5 1 Full Trace Events 4 | . 3 1 Feedback Events . | . . . Feedback Blocked . | . . . Robot Schematics Acquired . | . . . Robots Built . | . . . Matter . | . . . Time . | . . . Total Robot Build Rating . | . . . Part Schematics Acquired . | . . . Parts Built . | . . . Matter . | . . . Time . | . . . Total Part Build Rating . | . . . Parts Repaired . | . . . Time . | . . . Parts Recycled . | . . . Recycled Matter 84 | . 84 . Retrieved Matter . | . . . Retrieved Components . | . . . Parts Scanalyzed . | . . . Part Schematics Acquired . | . . . Parts Damaged . | . . . Bothacking | -11 -10 -9 ------------ Run | Scr Mat Mat Used RIF Installer . | . . . Robots Hacked . | . . . Non-combat . | . . . Combat . | . . . Robot Hacks Applied . | . . . Relay Couplers Released . | . . . Robots Rewired . | . . . Allies Hacked . | . . . Hacks Repelled . | . . . Allies | -11 -10 -9 -------- Run | Scr Mat Mat Total Allies . | . . . Largest Group . | . . . Highest-Rated Group . | . . . Highest-Rated Ally . | . . . Total Orders . | . . . Ally Attacks . | . . . Total Damage . | . . . Kills . | . . . Allies Corrupted . | . . . Allies Melted . | . . . Intel | -11 -10 -9 ------- Run | Scr Mat Mat Robot Analysis Total . | . . . Derelict Logs Recovered . | . . . Drone Launches . | . . . Drone Recoveries . | . . . Exploration | -11 -10 -9 ------------- Run | Scr Mat Mat Turns Passed 2506 | 128 1443 935 Spaces Moved 1321 | 152 833 336 Core 199 | 111 88 . Treads . | . . . Legs 1122 | 41 745 336 Wheels . | . . . Hover . | . . . Flight . | . . . Fastest Speed 50 | 50 120 120 Average Speed 116 | 69 123 120 Slowest Speed 150 | 120 150 120 Overloaded Moves . | . . . Propulsion Burnouts . | . . . Robots Hopped . | . . . Cave-ins Triggered . | . . . Exploration Rate (%) 29 | 5 79 5 Regions Visited 2 Branch Regions . Pre-discovered Areas . | . . . Known Exits Taken . | . . . Unknown Exits Taken 2 | 1 1 . Scrap Searched . | . . . Spaces Dug . | . . . Terrain Destroyed . | . . . Melee . | . . . Projectile . | . . . AOE . | . . . Actions | -11 -10 -9 --------- Run | Scr Mat Mat Total 2151 | 172 1149 830 Wait 704 | 14 241 449 Move 1319 | 151 832 336 Hop . | . . . Pick Up 8 | 2 2 4 Fast Attach 12 | 4 6 2 Attach 1 | 1 . . Detach 1 | . 1 . Swap . | . . . Drop 12 | . 7 5 Fire 86 | . 56 30 Melee . | . . . Ram . | . . . Kick 4 | . 4 . Crush . | . . . Escape Stasis . | . . . Rewire . | . . . Trap . | . . . Miscellaneous 4 | . . 4 Route ------- -11/Scrapyard -10/Materials (discovered 4 exits: *Mat x2 / [*Min x2]) -9/Materials History --------- Turn | Location | Event 8 | -11/Scrapyard | Discovered new exit (range 16) 93 | -11/Scrapyard | Upgraded with Propulsion slot (x1) 93 | -11/Scrapyard | Upgraded with Weapon slot (x1) 129 | -11/Scrapyard | Entered Materials 129 | -10/Materials | Discovered new exit (range 20) 209 | -10/Materials | Discovered new exit (range 14) 301 | -10/Materials | Build established: Mutant 699 | -10/Materials | Discovered new exit (range 19) 839 | -10/Materials | Discovered new exit (range 15) 1213 | -10/Materials | Core integrity fell below 50% 1265 | -10/Materials | Core integrity fell below 20% 1572 | -10/Materials | Entered another Materials area 1573 | -9/Materials | Core integrity fell below 50% 1573 | -9/Materials | Core integrity fell below 20% 1574 | -9/Materials | Reached level 2 1579 | -9/Materials | Upgraded with Utility slot (x1) 2504 | -9/Materials | Reached level 3 2507 | -9/Materials | Destroyed by G-34 Mercenary with Small Laser Last Messages --------------- Protomatter-47 decays. G-34 Mercenary destroyed. K-01 Serf collects debris. K-01 Serf destroyed. R-06 Scavenger collects Med. Matter Pod. R-06 Scavenger collects Aluminum Leg. R-06 Scavenger collects Heat Sink. Dropped Imp. Terrain Scanner. U-05 Engineer builds a Door. Acquired Protomatter-43. Acquired 11 matter. R-06 Scavenger collects Imp. Terrain Scanner. Connecting with Terminal... Current location identified: Materials >>Traps(Locate) No traps found in local area. ALERT: Suspicious activity at Terminal M012. Dispatching Investigation squad. Reached level 3. G-34 Mercenary destroyed. Map ----- +----------------------------------------------------+ | | | | | | | | | | | | | | | | | ???????????????????????????? | | ???????????????????????????? | | ???????????????????????????? | | ???????????????????????????? | | ???????????????????????????? | | ???????????????????????????? | | ???????????????????????????? | | ???????????????????????????? | | ???????????????????????????? | | ???????????????????????????? | | ???????????????############# | | ???????????##### # # | | ???????????#!! # # | | ???????????#!! # # | | ???????????#! # # | | ???????????#!! # # | | ???????????#!! g # | | ???????????#!! # @ # | | ???????????####### # # | | ?????????????????# # # | | ?????????????????# # # | | ?????????????????# #%= # | | ?????????????????# #+####### | | ?????????????????# =#?????? | | ?????????????????# #?????? | | ?????????????##### ##????? | | ?????????????# #????? | | ?????????????# #????? | | ?????????????# #????? | | ???????????### ##+#+###??? | | ????????####T# # #??? | | ????????# # """ #??? | | ????????# # """ #??? | | ????????# # """ #??? | | ????????# ###### #??? | | ????????# ?????# #??? | | ??????? ??????########??? | | ?????? ????????????????? | | ????? ?????????????????? | | ???# ##+?????????????????? | | ???# ????????????????????? | | ???# ?????????????????????? | +----------------------------------------------------+ Best States ------------- Heat Dissipation 25 Energy Generation 10 Energy Capacity 250 Matter Stores 309 Matter Capacity 450 Sight Range 22 Robot Scan Range 16 Terrain Scan Density 10 ECM Strength 2 Evasion (%) 50 Item Schematics ----------------- None Robot Schematics ------------------ None Fabricated ------------ Nothing Alien Tech Used ----------------- None Achievements -------------- None Challenges ------------ None RPGLIKE | -11 -10 -9 --------- Run | Scr Mat Mat Levels Raised 2 | . . 2 XP Earned 6140 | 3000 1290 1850 XP Spent 4450 | 2850 . 1600 Upgrades 16 | 7 . 9 Propulsion Slot 1 | 1 . . Utility Slot 1 | . . 1 Weapon Slot 1 | 1 . . Inventory Capacity 1 | 1 . . Sight Range 4 | 4 . . Sensor Range 8 | . . 8 Protomatter Created 333 | . 243 90 Integrity Restored 96 | . . 96 Core 96 | . . 96 Protomatter Decayed 258 | . 202 56 Game ------ Seed MolecularCoordinationShield Manual? 0 Play Time 01:05:58 Cumulative 49.6 hours Start 2019.12.21 @ 23:15:17 End 2019.12.22 @ 17:43:10 Sessions 4 Manual Loads 0 Difficulty Rogue Special Mode Winter2019/RPGLIKE Game No. 47 Rogue 45 Adventurer 0 Explorer 2 Win Type - Total 0 Types 0/0/0/0/0/0/0 Lore% 30 Gallery% 36 Achievement% 30 Wizard Run 0 Options --------- ASCII 1 Keyboard 1 Movement Vi Keybinds 0 Fullscreen 0 Font 12/Terminus Map View 76x50 Tactical HUD 0 Map Filters NONE Filters LOW_CONTRAST(47,30,31) Steam 1 RUN: 973c5ddc-3dbc-4f70-bf65-411e1128221a